[Event "Pan-American U20-ch 2023"]
[Site "Volta Redonda"]
[Date "2023.11.11"]
[Round "9.3"]
[White "Ibarra, Juan Martin"]
[Black "Schnaider, Ilan"]
[Result "0-1"]
[ECO "B94"]
[WhiteElo "2219"]
[BlackElo "2292"]
[Annotator "RC"]
[PlyCount "90"]
[EventDate "2023.10.31"]
[EventType "swiss"]
[EventCountry "BRA"]
[SourceTitle "playchess.com"]
[Source "ChessBase"]
[SourceQuality "1"]
[TimeControl "5400+30"]

1. e4 {[%emt 0:04:40]} c5 {[%emt 0:00:06]} 2. Nf3 {[%emt 0:00:04]} d6 {[%emt 0:00:05]} 3. d4 {[%emt 0:00:10]} cxd4 {[%emt 0:00:04]} 4. Nxd4 {[%emt 0:00:05]} Nf6 {[%emt 0:00:05]} 5. Nc3 {[%emt 0:00:04]} a6 {[%emt 0:00:04]} 6. Bg5 {[%emt 0:00:07]} Nbd7 {[%emt 0:00:31]} 7. Bc4 {[%emt 0:00:11]} Qb6 {[%emt 0:00:15]} 8. Bb3 {[%emt 0:00:05]} e6 {[%emt 0:01:04]} 9. Bxf6 {[%emt 0:00:18]} Nxf6 {[%emt 0:00:37]} 10. Qd2 {[%emt 0:00:05]} Nd7 {[%emt 0:04:07]} 11. O-O-O {[%emt 0:00:25]} Nc5 {[%emt 0:00:50]} 12. f4 {[%emt 0:00:17]} Bd7 {[%emt 0:07:34]} 13. Kb1 {[%emt 0:00:36]} Be7 {[%emt 0:07:42]} 14. f5 {[%emt 0:01:46]} Bf6 {[%emt 0:07:57]} 15. g4 {[%emt 0:12:50]} O-O-O {[%emt 0:09:16]} 16. Rhf1 {[%emt 0:14:45]} h6 {[%emt 0:06:06]} 17. Nde2 {[%emt 0:17:26]} Bc6 {[%emt 0:52:37]} 18. Nf4 {[%emt 0:05:49]} Rhe8 {[%emt 0:00:00]} 19. Nh5 {[%emt 0:08:09]} Be5 {[%emt 0:00:00]} 20. fxe6 {[%emt 0:01:01]} fxe6 {[%emt 0:00:00]} 21. Rf7 {[%emt 0:00:20]} a5 {[%emt 0:00:00]} 22. Nxg7 {[%emt 0:07:21]} a4 {[%emt 0:00:00]} 23. Nxe8 {[%emt 0:00:57]} Bxe8 {[%emt 0:00:00]} 24. Rf8 {[%emt 0:01:54]} axb3 {[%emt 0:00:00]} 25. axb3 {[%emt 0:00:08]} Kc7 {[%emt 0:00:00]} 26. Rdf1 {[%emt 0:07:59]} Ra8 {[%emt 0:00:00]} 27. R1f7+ {[%emt 0:01:17]} Nd7 {[%emt 0:00:00]} 28. Re7 {[%emt 0:06:31]} Qa5 {[%emt 0:00:00]} 29. Nb5+ {[%emt 0:00:18]} Qxb5 {[%emt 0:00:00]} 30. Rexe8 {[%emt 0:00:02]} Rxe8 {[%emt 0:01:19]} 31. Rxe8 {[%emt 0:00:02]} Nc5 {[%emt 0:01:30]} 32. Re7+ {[%emt 0:01:06]} Kb8 {[%emt 0:00:35]} 33. Qxh6 {[%emt 0:00:53]} Qf1+ {[%emt 0:02:00]} 34. Qc1 {[%emt 0:00:24]} Qe2 {[%emt 0:00:28]} 35. Re8+ {[%emt 0:01:43]} Kc7 {[%emt 0:00:59]} 36. Re7+ {[%emt 0:02:07]} Kd8 {[%emt 0:01:18]} 37. Rf7 {[%emt 0:02:38]} Nxe4 {[%emt 0:00:13]} 38. c4 {[%emt 0:01:38]} Nd2+ {[%emt 0:01:21]} 39. Ka2 {[%emt 0:00:01]} Kc8 {[%emt 0:00:43]} 40. Qc2 {[%emt 0:00:39]} Qe3 {[%emt 0:00:26]} 41. c5 {[%emt 0:01:29]} dxc5 {[%emt 0:00:31]} 42. g5 {[%emt 0:00:00]} c4 {[%emt 0:00:24]} 43. Rf8+ {[%emt 0:00:09]} Kd7 {[%emt 0:00:35]} 44. Qh7+ {[%emt 0:03:03]} Kc6 {[%emt 0:00:21]} 45. Rc8+ {[%emt 0:00:01]} Kb6 {[%emt 0:00:11]} 0-1

[Event "Pan-American U20-ch 2023"]
[Site "Volta Redonda"]
[Date "2023.11.11"]
[Round "9.4"]
[White "De Siqueira, Luigy Lira"]
[Black "Reyes Zavaleta, Fabian Ricardo"]
[Result "0-1"]
[ECO "B81"]
[WhiteElo "2179"]
[BlackElo "2122"]
[Annotator "RC"]
[PlyCount "52"]
[EventDate "2023.10.31"]
[EventType "swiss"]
[EventCountry "BRA"]
[SourceTitle "playchess.com"]
[Source "ChessBase"]
[SourceQuality "1"]
[TimeControl "5400+30"]

1. e4 {[%emt 0:13:18]} c5 {[%emt 0:00:08]} 2. Nf3 {[%emt 0:00:13]} d6 {[%emt 0:00:05]} 3. d4 {[%emt 0:00:06]} cxd4 {[%emt 0:00:04]} 4. Nxd4 {[%emt 0:00:08]} Nf6 {[%emt 1:32:13]} 5. Nc3 {[%emt 1:19:15]} e6 {[%emt 0:00:30]} 6. g4 {[%emt 0:00:30]} h6 {[%emt 0:00:30]} 7. h4 {[%emt 0:00:30]} Nc6 {[%emt 0:00:00]} 8. Rg1 {[%emt 0:00:00]} d5 {[%emt 0:01:00]} 9. exd5 {[%emt 0:00:00]} Nxd5 {[%emt 0:00:30]} 10. Nxd5 {[%emt 0:00:00]} Qxd5 {[%emt 0:00:00]} 11. Bg2 {[%emt 0:00:00]} Qc4 {[%emt 0:00:00]} 12. Nxc6 {[%emt 0:00:00]} bxc6 {[%emt 0:00:00]} 13. Be3 {[%emt 0:00:00]} Ba6 {[%emt 0:00:00]} 14. c3 {[%emt 0:00:00]} Qb5 {[%emt 0:00:00]} 15. Qf3 {[%emt 0:00:00]} Rc8 {[%emt 0:00:00]} 16. O-O-O {[%emt 0:00:00]} Be7 {[%emt 0:00:00]} 17. g5 {[%emt 0:00:00]} hxg5 {[%emt 0:00:00]} 18. hxg5 {[%emt 0:00:00]} Qa4 {[%emt 0:00:00]} 19. g6 {[%emt 0:00:00]} f5 {[%emt 0:00:00]} 20. Rh1 {[%emt 0:00:00]} Rg8 {[%emt 0:00:00]} 21. Rd4 {[%emt 0:00:00]} Qxa2 {[%emt 0:06:00]} 22. Rhd1 {[%emt 0:00:00]} Bb5 {[%emt 0:00:00]} 23. Qf4 {[%emt 0:00:00]} c5 {[%emt 0:00:00]} 24. Re4 {[%emt 0:00:00]} Rf8 {[%emt 0:00:00]} 25. Rxe6 {[%emt 0:00:00]} Qxe6 {[%emt 0:00:00]} 26. Re1 {[%emt 0:00:00]} Qa2 {[%emt 0:00:00]} 0-1

[Event "Pan-American U20-ch 2023"]
[Site "Volta Redonda"]
[Date "2023.11.11"]
[Round "9.5"]
[White "Silva, Kaua Marques"]
[Black "Sathish, Pranav"]
[Result "0-1"]
[ECO "B40"]
[WhiteElo "2235"]
[BlackElo "2415"]
[Annotator "RC"]
[PlyCount "92"]
[EventDate "2023.10.31"]
[EventType "swiss"]
[EventCountry "BRA"]
[SourceTitle "playchess.com"]
[Source "ChessBase"]
[SourceQuality "1"]
[TimeControl "5400+30"]

1. e4 {[%emt 0:13:33]} c5 {[%emt 0:00:05]} 2. Nf3 {[%emt 0:00:08]} e6 {[%emt 0:00:07]} 3. g3 {[%emt 0:01:17]} Nc6 {[%emt 0:00:07]} 4. Bg2 {[%emt 0:00:03]} Nf6 {[%emt 0:01:03]} 5. Qe2 {[%emt 0:00:50]} e5 {[%emt 0:00:32]} 6. O-O {[%emt 0:00:25]} Be7 {[%emt 0:00:33]} 7. c3 {[%emt 0:00:47]} O-O {[%emt 0:00:38]} 8. Re1 {[%emt 0:00:26]} Re8 {[%emt 0:02:59]} 9. d3 {[%emt 0:00:03]} d6 {[%emt 0:01:00]} 10. Bg5 {[%emt 0:02:35]} h6 {[%emt 0:01:06]} 11. Bxf6 {[%emt 0:00:32]} Bxf6 {[%emt 0:00:09]} 12. Nbd2 {[%emt 0:01:10]} Be6 {[%emt 0:08:05]} 13. Nc4 {[%emt 0:03:55]} d5 {[%emt 0:04:33]} 14. exd5 {[%emt 0:04:47]} Bxd5 {[%emt 0:00:55]} 15. Ne3 {[%emt 0:06:36]} Be6 {[%emt 0:01:23]} 16. Nd2 {[%emt 0:00:14]} Qd7 {[%emt 0:01:53]} 17. h4 {[%emt 0:10:07]} Be7 {[%emt 0:07:50]} 18. Ndc4 {[%emt 0:05:22]} f6 {[%emt 0:01:28]} 19. Be4 {[%emt 0:05:11]} f5 {[%emt 0:00:58]} 20. Bxc6 {[%emt 0:01:09]} Qxc6 {[%emt 0:00:02]} 21. Nxe5 {[%emt 0:01:16]} Qc7 {[%emt 0:00:03]} 22. f4 {[%emt 0:02:27]} Bf6 {[%emt 0:03:49]} 23. Nc2 {[%emt 0:07:53]} Bd5 {[%emt 0:05:27]} 24. Qe3 {[%emt 0:02:51]} Rad8 {[%emt 0:00:58]} 25. c4 {[%emt 0:03:20]} Bc6 {[%emt 0:01:14]} 26. Re2 {[%emt 0:05:27]} Bxe5 {[%emt 0:07:14]} 27. fxe5 {[%emt 0:00:07]} f4 {[%emt 0:00:11]} 28. gxf4 {[%emt 0:03:12]} Qf7 {[%emt 0:00:17]} 29. d4 {[%emt 0:07:23]} Qxc4 {[%emt 0:01:47]} 30. Qb3 {[%emt 0:02:07]} Qxb3 {[%emt 0:00:18]} 31. axb3 {[%emt 0:00:01]} cxd4 {[%emt 0:00:09]} 32. Rf2 {[%emt 0:03:53]} d3 {[%emt 0:00:29]} 33. Ne3 {[%emt 0:00:15]} g5 {[%emt 0:07:53]} 34. Ng4 {[%emt 0:00:12]} Kg7 {[%emt 0:01:14]} 35. fxg5 {[%emt 0:04:28]} hxg5 {[%emt 0:00:46]} 36. Rf5 {[%emt 0:02:08]} gxh4 {[%emt 0:03:07]} 37. Raf1 {[%emt 0:00:24]} Re6 {[%emt 0:00:34]} 38. Kh2 {[%emt 0:01:16]} d2 {[%emt 0:01:26]} 39. Ne3 {[%emt 0:00:52]} Rd3 {[%emt 0:00:28]} 40. Rf7+ {[%emt 0:01:06]} Kg6 {[%emt 0:00:08]} 41. Nd1 {[%emt 0:00:39]} Rxe5 {[%emt 0:00:56]} 42. R7f6+ {[%emt 0:00:22]} Kg5 {[%emt 0:00:05]} 43. R6f2 {[%emt 0:00:35]} Bd7 {[%emt 0:04:24]} 44. Rg2+ {[%emt 0:00:23]} Rg3 {[%emt 0:00:19]} 45. Rxd2 {[%emt 0:00:24]} Bc6 {[%emt 0:00:42]} 46. Rdf2 {[%emt 0:00:41]} Bb5 {[%emt 0:00:29]} 0-1